bitfinex-derivatives/quotes_SOLF0:USTF0_20250903
["timestamp","ask_amount","ask_price","bid_price","bid_amount"]
[1756942478867,3.70569806,210.3,210.24,7.78]
[1756942479171,3.70569806,210.29,210.24,7.78]
[1756942479365,7.52,210.28,210.21,3.94710759]
[1756942479565,7.52,210.28,210.22,7.78]
[1756942481563,7.52,210.26,210.22,7.78]
[1756942481768,7.52,210.29,210.22,7.78]
[1756942481964,3.71000345,210.28,210.19,3.94710759]
[1756942482272,3.71000345,210.27,210.2,7.39]
[1756942482570,7.69,210.29,210.21,7.39]
[1756942482771,3.71109125,210.28,210.21,7.39]
[1756942482972,3.71109125,210.27,210.21,7.39]
[1756942483168,3.71221981,210.26,210.21,7.39]
[1756942483371,7.69,210.36,210.21,7.39]
[1756942483575,7.69,210.32,210.21,7.39]
[1756942483771,3.71214221,210.31,210.21,7.39]
[1756942484072,11.40214221,210.3,210.21,7.39]
[1756942484270,3.71214221,210.29,210.21,3.94710759]
[1756942484474,3.71214221,210.28,210.22,7.39]
[1756942484668,3.71214221,210.27,210.21,3.94710759]
[1756942484863,7.69,210.3,210.22,7.39]
[1756942485062,3.71248151,210.29,210.22,7.39]
[1756942485264,3.71248151,210.28,210.22,7.39]
[1756942485469,3.71248151,210.27,210.21,3.94710759]
[1756942485670,7.69,210.3,210.22,7.39]
[1756942485868,3.71252716,210.29,210.22,7.39]
[1756942486069,3.71252716,210.28,210.22,7.39]
[1756942486268,3.71252716,210.27,210.21,3.94710759]
[1756942486471,7.69,210.3,210.22,7.39]
[1756942486763,3.71268372,210.29,210.22,7.39]
[1756942486965,3.71268372,210.28,210.22,7.39]
[1756942487172,3.71268372,210.27,210.22,7.39]
[1756942487373,7.69,210.3,210.22,7.39]
[1756942487573,3.71287001,210.29,210.22,7.39]
[1756942487770,7.69,210.36,210.24,7.39]
[1756942487970,7.69,210.34,210.25,7.39]
[1756942488177,3.71262867,210.33,210.26,7.39]
[1756942488364,2.44214232,210.38,210.27,7.39]
[1756942488365,3.71262867,210.32,210.27,7.39]
[1756942488570,3.71262867,210.31,210.28,2.44214232]
[1756942488875,7.69,210.38,210.29,7.39]
[1756942489077,3.71216921,210.37,210.29,7.39]
[1756942489271,3.71216921,210.36,210.29,7.39]
[1756942489473,3.71216921,210.35,210.29,7.39]
[1756942489672,3.71216921,210.34,210.28,2.44214232]
[1756942489965,3.71216921,210.33,210.28,2.44214232]
[1756942490169,3.71216921,210.32,210.28,2.44214232]
[1756942490371,7.69,210.38,210.29,7.39]
[1756942490569,3.73228097,210.37,210.29,7.39]
[1756942490772,7.69,210.38,210.29,7.39]
[1756942490773,3.73228097,210.36,210.29,7.39]
[1756942490967,3.73228097,210.35,210.29,7.39]
[1756942491275,3.73228097,210.34,210.28,2.44214232]
[1756942491477,3.73228097,210.33,210.28,2.44214232]
[1756942491773,3.73228097,210.32,210.28,2.44214232]
[1756942491973,7.69,210.38,210.29,7.39]
[1756942492176,3.73194279,210.37,210.29,7.39]
[1756942492375,3.73194279,210.36,210.29,7.39]
[1756942492673,3.73194279,210.35,210.29,7.39]
[1756942492868,3.73194279,210.34,210.29,7.39]
[1756942493073,3.73194279,210.33,210.28,2.44214232]
[1756942493273,7.69,210.38,210.29,7.39]
[1756942493473,3.7313542,210.37,210.29,7.39]
[1756942493674,7.69,210.38,210.29,7.39]
[1756942493675,3.7313542,210.36,210.29,7.39]
[1756942493875,3.7313542,210.35,210.29,7.39]
[1756942494076,3.7313542,210.34,210.29,7.39]
[1756942494376,3.7313542,210.33,210.28,2.44214232]
[1756942494580,7.69,210.38,210.29,7.39]
[1756942494777,3.7310979,210.37,210.29,7.39]
[1756942495075,3.7310979,210.36,210.29,7.39]
[1756942495375,3.7310979,210.35,210.29,7.39]
[1756942495576,3.7310979,210.34,210.29,7.39]
[1756942495876,3.7310979,210.33,210.28,2.44214232]
[1756942496175,7.69,210.38,210.29,7.39]
[1756942496375,3.73040736,210.37,210.29,7.39]
[1756942496575,3.73040736,210.36,210.29,7.39]
[1756942496879,3.73040736,210.35,210.29,7.39]
[1756942497176,7.69,210.38,210.29,7.39]
[1756942502078,10.13214232,210.38,210.29,7.39]
[1756942503981,10.13214232,210.38,210.25,3.94710759]
[1756942504175,2.44214232,210.32,210.21,11.33710759]
[1756942504381,7.69,210.28,210.21,7.39]
[1756942506187,7.69,210.28,210.19,147.04945792]
[1756942506387,10.13214232,210.28,210.19,147.04945792]
[1756942506687,10.13214232,210.28,210.2,7.39]
[1756942507590,1.56368459,210.26,210.2,7.39]
[1756942509488,9.25368459,210.26,210.2,7.39]
[1756942511283,7.69,210.26,210.2,7.39]
[1756942511484,9.25368459,210.25,210.18,325.10315218]
[1756942511779,1.56368459,210.23,210.18,3.95946759]
[1756942511986,11.38,210.34,210.12,11.23946759]
[1756942511987,9.02368459,210.19,210.12,11.23946759]
[1756942512982,7.46,210.19,210.14,7.28]
[1756942513290,124.0,210.3,210.16,7.28]
[1756942513291,1.56368459,210.24,210.16,7.28]
[1756942513484,1.56368459,210.24,210.17,79.46]
[1756942513686,1.56368459,210.24,210.18,7.28]
[1756942513889,1.56368459,210.24,210.18,24.02]
[1756942514284,1.56368459,210.24,210.18,41.36]
[1756942514486,1.56368459,210.24,210.18,7.28]
[1756942514689,7.46,210.25,210.19,17.64]
[1756942514883,7.46,210.25,210.19,8.84368459]
[1756942515084,7.46,210.25,210.19,32.02]
[1756942515290,7.46,210.25,210.19,7.28]
[1756942515594,1.56368459,210.22,210.15,7.28]
[1756942515794,1.56368459,210.22,210.15,125.18]
[1756942515991,7.46,210.19,210.15,7.28]
[1756942516797,9.02368459,210.18,210.13,7.28]
[1756942517101,7.46,210.17,210.13,7.28]
[1756942517304,1.56368459,210.16,210.1,150.69008972]
[1756942517499,1.56368459,210.16,210.1,153.18248449]
[1756942517700,1.56368459,210.16,210.1,125.2]
[1756942517894,1.56368459,210.16,210.1,7.28]
[1756942518095,7.46,210.17,210.1,7.28]
[1756942518297,1.56368459,210.18,210.1,8.84368459]
[1756942518496,1.56368459,210.18,210.12,7.28]
[1756942520601,1.56368459,210.16,210.08,4.78777278]
[1756942520807,7.46,210.09,210.05,7.28]
[1756942521302,7.46,210.09,210.02,1.56368459]
[1756942521607,9.02368459,210.09,210.03,7.28]
[1756942523004,9.02368459,210.09,210.04,118.12]
[1756942523209,9.02368459,210.09,210.04,125.4]
[1756942523405,1.56368459,210.09,210.03,118.12]
[1756942523601,1.56368459,210.07,210.03,118.12]
[1756942523806,7.46,210.07,210.03,118.1]
[1756942524108,9.02368459,210.06,210.03,118.1]
[1756942524303,1.56368459,210.06,210.03,125.38]
[1756942524509,1.56368459,210.06,210.04,7.28]
[1756942524709,1.56368459,210.06,209.99,321.95236454]
[1756942524905,1.56368459,210.06,210.0,125.38]
[1756942525303,1.56368459,210.06,209.99,321.95236454]
[1756942525304,1.56368459,210.06,210.01,118.1]
[1756942525508,1.56368459,210.06,210.02,7.28]
[1756942525709,1.56368459,210.06,210.02,118.08]
[1756942525905,9.02368459,210.06,209.99,328.40368459]
[1756942526109,9.02368459,210.06,210.0,118.06]
[1756942526308,9.02368459,210.06,209.99,326.84]
[1756942526607,1.56368459,210.04,210.0,118.06]
[1756942526813,1.56368459,210.04,210.01,7.28]
[1756942527307,9.02368459,210.04,210.01,7.28]
[1756942527510,7.46,210.08,210.01,118.06]
[1756942527712,1.56368459,210.08,210.02,125.34]
[1756942528210,1.56368459,210.08,210.02,7.28]
[1756942528400,1.56368459,210.08,210.04,7.28]
[1756942528606,9.02368459,210.08,210.04,7.28]
[1756942529007,9.02368459,210.08,210.04,125.4]
[1756942530213,9.02368459,210.08,210.05,7.28]
[1756942530411,9.02368459,210.08,210.04,118.1]
[1756942530812,1.56368459,210.08,210.02,7.28]
[1756942531008,7.46,210.05,210.03,118.06]
[1756942531206,1.56368459,210.04,209.99,326.84]
[1756942531414,1.56368459,210.06,210.0,125.48]
[1756942531604,7.46,210.1,210.01,7.28]
[1756942531809,1.56368459,210.09,210.01,8.84368459]
[1756942532210,1.56368459,210.13,210.06,7.28]
[1756942532410,1.56368459,210.13,210.07,118.34]
[1756942532614,1.56368459,210.13,210.08,118.36]
[1756942532809,9.02368459,210.13,210.08,125.64]
[1756942533113,9.02368459,210.13,210.09,7.28]
[1756942533613,9.02368459,210.13,210.09,125.62]
[1756942533815,9.02368459,210.13,210.09,7.28]
[1756942536011,1.56368459,210.11,210.03,1.56368459]
[1756942536211,8.9,210.19,210.06,30.16]
[1756942536416,1.56368459,210.09,210.06,30.16]
[1756942536617,1.56368459,210.09,210.06,37.44]
[1756942537212,1.56368459,210.09,210.06,7.28]
[1756942538012,7.46,210.08,209.99,7.28]
[1756942538217,1.56368459,210.04,209.99,7.28]
[1756942538412,1.56368459,210.04,209.98,125.48]
[1756942541019,7.46,210.01,209.98,7.28]
[1756942542216,1.56368459,210.02,209.98,7.28]
[1756942542520,8.84368459,210.02,209.98,7.28]
[1756942543619,8.84368459,210.02,209.98,7.62]
[1756942545322,1.56368459,210.02,209.99,7.62]
[1756942545521,1.56368459,210.02,209.98,7.62]
[1756942545721,7.28,210.01,209.91,5.11453656]
[1756942545923,1.56368459,210.02,209.94,7.62]
[1756942546217,1.56368459,210.02,209.95,118.1]
[1756942546823,1.56368459,210.02,209.96,118.08]
[1756942547722,7.28,210.05,209.97,7.62]
[1756942547918,1.56368459,210.03,209.97,7.62]
[1756942548927,1.56368459,210.01,209.97,7.62]
[1756942549121,1.56368459,210.01,209.96,118.04]
[1756942549520,1.56368459,210.01,209.97,7.62]
[1756942550220,1.56368459,210.01,209.96,118.04]
[1756942551022,1.56368459,210.01,209.97,7.62]
[1756942551222,1.56368459,210.01,209.96,118.04]
[1756942551920,1.56368459,210.02,209.96,125.66]
[1756942552726,7.28,210.05,209.96,125.66]
[1756942552931,7.28,210.05,209.97,125.66]
[1756942552932,1.56368459,210.03,209.97,125.66]
[1756942554131,1.56368459,210.03,209.97,7.62]
[1756942554330,1.56368459,210.03,209.97,125.66]
[1756942555230,1.56368459,210.03,209.97,7.62]
[1756942555433,1.56368459,210.01,209.92,4.2855]
[1756942555630,1.56368459,210.01,209.94,7.62]
[1756942557221,1.56368459,210.01,209.95,78.54]
[1756942557523,1.56368459,210.01,209.96,7.62]
[1756942558227,1.56368459,210.01,209.95,78.54]
[1756942558724,1.56368459,210.01,209.96,7.62]
[1756942559632,7.28,210.03,209.96,7.62]
[1756942559923,1.56368459,210.05,209.98,7.62]
[1756942560320,3.68953501,210.04,209.98,7.62]
[1756942560520,1.56368459,210.05,209.98,7.62]
[1756942560831,3.68959675,210.04,209.98,7.62]
[1756942561129,8.84368459,210.05,209.97,7.62]
[1756942561130,3.68959675,210.03,209.97,7.62]
[1756942561332,1.56368459,210.02,209.97,7.62]
[1756942561528,1.56368459,210.0,209.97,7.62]
[1756942562032,1.56368459,209.98,209.92,7.62]
[1756942563426,1.56368459,209.98,209.92,9.18368459]
[1756942563928,132.84368459,210.0,209.92,9.18368459]
[1756942564133,3.69532713,209.99,209.92,9.18368459]
[1756942564432,132.84368459,210.0,209.92,9.18368459]
[1756942564636,3.69750215,209.99,209.92,9.18368459]
[1756942564832,132.84368459,210.0,209.92,9.18368459]
[1756942565032,3.69750215,209.99,209.92,9.18368459]
[1756942565233,5.26426977,209.98,209.92,125.66]
[1756942565435,1.56368459,209.98,209.92,125.66]
[1756942566235,1.56368459,209.98,209.92,125.68]
[1756942567438,131.28,210.0,209.92,125.68]
[1756942567633,131.28,210.0,209.92,7.62]
[1756942567634,7.28,209.98,209.92,7.62]
[1756942567938,7.28,209.96,209.92,7.62]
[1756942569032,9.72964918,209.99,209.92,7.62]
[1756942569337,3.69985173,209.98,209.92,7.62]
[1756942569534,9.72964918,209.99,209.92,7.62]
[1756942569735,3.69956516,209.98,209.92,7.62]
[1756942569927,9.72964918,209.99,209.92,7.62]
[1756942570131,3.6983717,209.98,209.92,7.62]
[1756942570330,9.72964918,209.99,209.92,7.62]
[1756942570529,3.6981665,209.98,209.92,7.62]
[1756942570734,9.72964918,209.99,209.92,7.62]
[1756942570937,3.6981665,209.98,209.92,7.62]
[1756942571139,9.72964918,209.99,209.92,7.62]
[1756942573241,3.69772604,209.98,209.92,7.62]
[1756942573437,9.72964918,209.99,209.92,7.62]
[1756942573743,3.69748431,209.98,209.92,7.62]
[1756942573941,9.72964918,209.99,209.92,7.62]
[1756942574142,3.69748431,209.98,209.92,7.62]
[1756942574341,9.72964918,209.99,209.92,7.62]
[1756942574543,3.69731542,209.98,209.92,7.62]
[1756942574744,9.72964918,209.99,209.92,7.62]
[1756942574946,3.69731542,209.98,209.92,7.62]
[1756942575145,9.72964918,209.99,209.92,7.62]
[1756942577049,7.28,209.99,209.92,7.62]
[1756942577243,7.73,210.02,209.92,7.62]
[1756942577746,124.0,210.02,209.92,7.62]
[1756942578339,3.6986009,210.01,209.94,7.44]
[1756942578542,3.69866153,210.0,209.94,7.44]
[1756942578743,7.73,209.98,209.94,7.44]
[1756942579249,7.73,209.98,209.93,40.58]
[1756942579449,7.73,210.01,209.94,7.44]
[1756942579644,3.70030459,210.0,209.94,7.44]
[1756942579841,3.70030459,209.99,209.93,79.12]
[1756942580044,124.0,210.02,209.94,7.44]
[1756942580249,3.63561252,210.01,209.94,7.44]
[1756942580548,124.0,210.02,209.94,7.44]
[1756942580747,3.63770282,210.01,209.94,7.44]
[1756942581046,124.0,210.02,209.94,7.44]
[1756942581244,3.63770282,210.01,209.94,7.44]
[1756942581546,124.0,210.02,209.94,7.44]
[1756942581745,3.63913226,210.01,209.94,7.44]
[1756942581951,131.73,210.02,209.94,7.44]
[1756942582150,3.63919331,210.01,209.94,7.44]
[1756942582451,3.63919331,210.0,209.94,7.44]
[1756942582746,131.73,210.02,209.94,7.44]
[1756942582951,3.64101005,210.01,209.94,7.44]
[1756942583252,3.64101005,210.0,209.94,7.44]
[1756942583450,131.73,210.02,209.94,7.44]
[1756942583647,3.6417342,210.01,209.94,7.44]
[1756942583847,3.6417342,210.0,209.94,7.44]
[1756942584050,131.73,210.02,209.94,7.44]
[1756942584250,3.6417342,210.01,209.94,7.44]
[1756942584450,131.73,210.02,209.94,7.44]
[1756942584752,3.64231833,210.01,209.94,7.44]
[1756942585049,3.64231833,210.0,209.94,7.44]
[1756942585252,131.73,210.02,209.94,7.44]
[1756942585448,3.64288498,210.01,209.94,7.44]
[1756942585649,3.64288498,210.0,209.94,7.44]
[1756942585847,131.73,210.02,209.94,7.44]
[1756942586046,3.64288498,210.01,209.94,125.48]
[1756942586242,3.64288498,210.0,209.94,7.44]
[1756942586443,131.73,210.02,209.94,7.44]
[1756942586752,3.64331949,210.01,209.94,7.44]
[1756942586952,3.64331949,210.0,209.94,7.44]
[1756942587154,131.73,210.02,209.94,7.44]
[1756942587349,3.64321448,210.01,209.94,7.44]
[1756942587553,3.64321448,210.0,209.94,7.44]
[1756942587755,131.73,210.02,209.94,7.44]
[1756942587956,3.6433291,210.01,209.94,7.44]
[1756942588153,3.6433291,210.0,209.94,7.44]
[1756942588360,7.73,209.98,209.92,3.93902995]
[1756942588559,7.73,209.98,209.9,60.21902995]
[1756942588955,7.73,209.98,209.91,7.44]
[1756942589660,134.17964918,210.02,209.91,7.44]
[1756942589859,7.19576575,210.01,209.91,7.44]
[1756942590061,7.19576575,210.0,209.91,7.44]
[1756942590255,3.64371859,209.99,209.91,7.44]
[1756942590459,3.64371859,209.98,209.91,7.44]
[1756942590660,134.17964918,210.02,209.91,7.44]
[1756942590856,7.19587662,210.01,209.91,7.44]
[1756942591160,7.19587662,210.0,209.91,7.44]
[1756942591356,3.64377473,209.99,209.91,7.44]
[1756942591557,3.64377473,209.98,209.91,7.44]
[1756942591758,134.17964918,210.02,209.91,7.44]
[1756942591958,7.19592014,210.01,209.91,7.44]
[1756942592153,7.19592014,210.0,209.91,7.44]
[1756942592365,3.64379677,209.99,209.91,7.44]
[1756942592666,3.64379677,209.98,209.91,7.44]
[1756942596166,3.64434233,209.97,209.91,7.44]
[1756942596361,7.73,209.99,209.91,3.93902995]
[1756942596665,3.64448926,209.98,209.92,7.44]
[1756942596863,3.64448926,209.98,209.91,3.93902995]
[1756942596864,3.64448926,209.97,209.91,3.93902995]
[1756942597064,7.73,209.99,209.92,7.44]
[1756942597260,3.64448926,209.98,209.92,7.44]
[1756942597460,3.64448926,209.97,209.91,3.93902995]
[1756942597761,7.73,209.99,209.92,7.44]
[1756942597960,3.64466236,209.98,209.92,7.44]
[1756942598156,3.64466236,209.97,209.91,3.93902995]
[1756942598364,7.73,210.01,209.92,7.44]
[1756942598565,7.19840243,210.0,209.92,7.44]
[1756942598764,3.64505372,209.99,209.92,7.44]
[1756942599066,3.64505372,209.98,209.92,7.44]
[1756942599265,7.73,210.01,209.92,11.37902995]
[1756942599462,7.19866514,210.0,209.92,11.37902995]
[1756942599663,11.3749845,209.99,209.92,7.44]
[1756942599859,3.6449845,209.98,209.92,7.44]
[1756942600666,7.73,209.97,209.91,3.99057862]
[1756942600868,3.64572988,209.96,209.9,3.99057862]
[1756942601064,7.73,209.97,209.9,3.99057862]
[1756942601265,3.64581077,209.96,209.9,3.99057862]
[1756942601469,7.73,209.97,209.9,3.99057862]
[1756942601673,3.64600368,209.96,209.9,3.99057862]
[1756942601962,7.73,209.97,209.9,3.99057862]
[1756942602267,3.64600447,209.96,209.9,3.99057862]
[1756942602468,7.73,209.97,209.9,121.99057862]
[1756942602669,3.64623799,209.96,209.9,121.99057862]
[1756942602863,7.73,209.97,209.9,121.99057862]
[1756942603064,3.64623799,209.96,209.9,121.99057862]
[1756942603361,7.73,209.97,209.9,121.99057862]
[1756942603563,11.11657792,209.96,209.9,3.99057862]
[1756942603769,7.47,209.96,209.9,121.99057862]
[1756942604070,7.47,209.96,209.9,3.99057862]
[1756942604272,7.47,209.96,209.9,121.97057862]
[1756942605066,2.44964918,209.95,209.9,3.99057862]
[1756942605266,2.44964918,209.95,209.89,7.44]
[1756942605267,7.47,209.93,209.89,7.44]
[1756942606575,7.47,209.93,209.88,3.99057862]
[1756942606771,7.47,209.93,209.89,7.93]
[1756942607269,7.47,209.93,209.88,3.99057862]
[1756942607471,9.91964918,209.95,209.89,7.93]
[1756942607671,3.64691629,209.94,209.88,129.90057862]
[1756942607871,9.91964918,209.95,209.88,129.90057862]
[1756942607872,7.47,209.95,209.89,7.93]
[1756942608068,3.64688633,209.94,209.88,121.97057862]
[1756942608372,7.47,209.95,209.91,7.93]
[1756942608974,7.47,209.95,209.89,3.99057862]
[1756942609273,7.47,209.95,209.9,7.93]
[1756942609472,7.47,209.95,209.89,11.92057862]
[1756942613178,7.47,209.95,209.91,7.93]
[1756942613369,7.47,209.95,209.9,117.98]
[1756942613574,7.47,209.95,209.9,117.96]
[1756942613870,7.47,209.95,209.9,125.89]
[1756942614077,7.47,209.95,209.91,7.93]
[1756942614274,2.44964918,209.98,209.91,7.93]
[1756942614475,7.47,209.97,209.91,7.93]
[1756942617276,7.47,210.01,209.91,7.93]
[1756942617476,7.47,210.01,209.92,11.92057862]
[1756942617676,7.47,210.01,209.93,7.93]
[1756942627785,7.47,209.98,209.92,3.99057862]
[1756942627985,7.47,209.98,209.91,7.93]
[1756942628384,7.47,209.98,209.91,3.99057862]
[1756942628581,7.47,210.01,209.92,7.93]
[1756942629489,1.56767365,209.99,209.92,7.93]
[1756942631179,1.56767365,209.97,209.91,3.99057862]
[1756942631385,1.56767365,209.97,209.92,7.93]
[1756942631692,9.03767365,209.99,209.92,7.93]
[1756942631990,9.03767365,209.99,209.92,11.92057862]
[1756942632192,9.03767365,209.99,209.93,7.81]
[1756942633089,125.56767365,210.02,209.95,7.81]
[1756942634790,7.53,209.99,209.95,7.81]
[1756942634986,1.56767365,210.0,209.95,7.81]
[1756942635192,7.53,209.98,209.92,11.80057862]
[1756942636087,7.53,209.98,209.92,7.81]
[1756942637192,7.53,209.98,209.92,11.80057862]
[1756942637388,1.56767365,209.97,209.91,3.99057862]
[1756942637594,1.56767365,209.97,209.87,5.20862128]
[1756942637595,1.56767365,209.93,209.9,7.81]
[1756942638391,7.53,209.94,209.9,7.81]
[1756942639497,7.53,210.01,209.9,7.81]
[1756942639695,1.56767365,209.97,209.9,7.81]
[1756942640798,1.56767365,209.97,209.9,54.89]
[1756942641698,9.09767365,209.98,209.9,54.89]
[1756942641897,3.5431573,209.97,209.9,54.89]
[1756942642196,9.09767365,209.98,209.9,54.89]
[1756942642396,3.54311231,209.97,209.9,54.89]
[1756942642596,9.09767365,209.98,209.9,54.89]
[1756942642798,3.54311231,209.97,209.9,54.89]
[1756942642998,9.09767365,209.98,209.9,56.45767365]
[1756942643199,3.54311231,209.97,209.9,56.45767365]
[1756942643398,9.09767365,209.98,209.9,56.45767365]
[1756942643600,3.5430734,209.97,209.9,56.45767365]
[1756942643804,9.09767365,209.98,209.9,56.45767365]
[1756942644001,3.5430734,209.97,209.9,56.45767365]
[1756942644200,9.09767365,209.98,209.9,56.45767365]
[1756942644402,3.54311962,209.97,209.9,56.45767365]
[1756942644606,9.09767365,209.98,209.9,56.45767365]
[1756942644803,3.54311962,209.97,209.9,56.45767365]
[1756942645003,9.09767365,209.98,209.9,56.45767365]
[1756942645702,9.09767365,209.98,209.91,7.81]
[1756942647403,7.53,209.98,209.91,7.81]
[1756942647604,9.09767365,209.98,209.91,7.81]
[1756942652511,1.56767365,210.01,209.93,7.81]
[1756942652709,3.54329044,210.0,209.93,7.81]
[1756942652909,3.54329044,209.99,209.93,7.81]
[1756942653110,1.56767365,210.01,209.94,1.56767365]
[1756942653306,3.54329787,210.0,209.94,1.56767365]
[1756942653504,131.53,210.02,209.95,7.81]
[1756942653707,3.54322209,210.01,209.95,7.81]
[1756942654010,131.53,210.02,209.95,7.81]
[1756942654212,3.54293678,210.01,209.95,7.81]
[1756942654509,131.53,210.02,209.95,7.81]
[1756942654709,3.54280808,210.01,209.95,7.81]
[1756942655008,131.53,210.02,209.95,7.81]
[1756942655209,3.54278026,210.01,209.95,7.81]
[1756942655410,131.53,210.02,209.95,7.81]
[1756942655610,3.54259781,210.01,209.95,7.81]
[1756942655811,131.53,210.02,209.95,7.81]
[1756942656112,3.54259743,210.01,209.96,1.56767365]
[1756942656313,131.53,210.02,209.96,9.37767365]
[1756942658510,131.53,210.02,209.96,7.81]
[1756942664725,131.53,210.02,209.95,1.56767365]
[1756942665122,3.54157784,210.01,209.95,1.56767365]
[1756942665320,7.55,210.01,209.95,1.56767365]
[1756942665623,9.11767365,210.01,209.95,1.56767365]
[1756942666527,7.55,210.01,209.95,1.56767365]
[1756942666828,7.55,210.01,209.95,9.05767365]
[1756942683641,1.56767365,210.0,209.92,11.48478691]
[1756942683939,7.55,209.99,209.92,7.49]
[1756942685141,7.55,209.99,209.93,1.56767365]
[1756942685839,7.55,209.99,209.95,1.56767365]
[1756942686040,7.55,209.99,209.96,7.49]
[1756942686739,1.56767365,210.02,209.96,7.49]
[1756942686936,7.55,209.99,209.93,1.56767365]
[1756942687246,7.55,209.99,209.92,3.99478691]
[1756942691747,7.55,209.99,209.93,7.49]
[1756942693246,7.55,209.99,209.93,11.48478691]
[1756942697256,7.9,210.02,209.94,7.38]
[1756942697958,7.9,210.02,209.94,11.37478691]
[1756942698158,124.0,210.03,209.94,11.37478691]
[1756942698955,3.53299684,210.02,209.94,11.37478691]
[1756942699160,7.9,210.0,209.94,7.38]
[1756942706154,7.9,210.04,209.95,2.44941218]
[1756942706359,3.53242301,210.03,209.96,7.38]
[1756942706560,7.9,210.04,209.96,7.38]
[1756942706768,3.53225018,210.03,209.96,7.38]
[1756942706960,7.9,210.04,209.96,7.38]
[1756942707260,3.53225166,210.03,209.96,7.38]
[1756942707566,7.9,210.04,209.96,7.38]
[1756942707765,3.53197042,210.03,209.96,7.38]
[1756942708064,7.9,210.04,209.97,7.38]
[1756942710766,7.9,210.08,209.99,7.38]
[1756942710969,7.9,210.08,210.0,7.38]
[1756942711670,7.9,210.08,210.01,4.2836]
[1756942711872,7.9,210.08,210.02,7.38]
[1756942717478,124.0,210.12,210.02,7.38]
[1756942717781,111.50591655,210.17,210.02,7.38]
[1756942717782,7.9,210.13,210.02,7.38]
[1756942717975,7.9,210.13,210.03,50.28]
[1756942718176,131.9,210.13,210.04,7.38]
[1756942718376,131.9,210.13,210.04,58.78]
[1756942719782,131.9,210.13,210.04,70.54]
[1756942724187,131.9,210.13,210.04,7.38]
[1756942724485,7.56,210.12,210.0,21.79]
[1756942724685,124.0,210.13,210.01,7.69]
[1756942724881,7.56,210.12,210.02,2.44941218]
[1756942725078,7.56,210.12,210.03,7.69]
[1756942726583,7.56,210.1,210.03,7.69]
[1756942735686,124.0,210.13,210.03,53.16]
[1756942735884,7.56,210.12,210.04,7.69]
[1756942737687,7.56,210.16,210.04,2.44941218]
[1756942737887,7.56,210.16,210.05,7.69]
[1756942738190,124.0,210.15,210.05,7.69]
[1756942738887,7.56,210.14,210.05,7.69]
[1756942739091,124.0,210.15,210.05,125.03]
[1756942739494,7.56,210.14,210.05,125.03]
[1756942740592,7.56,210.14,210.05,7.69]
[1756942740793,10.00941218,210.14,210.05,7.69]
[1756942744393,2.44941218,210.14,210.02,146.25733457]
[1756942744699,7.56,210.1,210.01,7.69]
[1756942745499,7.56,210.07,209.95,2.44941218]
[1756942745696,7.56,210.07,209.97,7.69]
[1756942749496,1.56704311,210.03,209.97,7.69]
[1756942755602,1.56704311,209.98,209.91,7.83]
[1756942756002,1.56704311,209.96,209.88,1.56704311]
[1756942756208,1.56704311,209.96,209.89,7.83]
[1756942758308,7.84,209.95,209.89,7.83]
[1756942758607,1.56704311,209.96,209.89,7.83]